Cogmind - Beta 13 @@@ ROGUE MODE // 2024.04.30 @ 13:17:56 Player: e.v.o Result: Self-destructed Performance ------------- Evolutions (3) 1500 Regions Visited (8) 1600 Robots Destroyed (41) 205 Value Destroyed (1200) 1200 Prototype IDs (5) 100 Alien Tech Used (0) 0 Bonus (428) 428 TOTAL SCORE: 5033 Bonus ------- Follower Combat Kills 128 Aligned with FarCom 300 Cogmind --------- Core Integrity 507/700 Matter 300/300 Energy 210/210 System Corruption 0% Temperature Cool (66) Movement Hovering (48) Location -7/Factory Parts ------- > --- POWER (3) -------- Light Nuclear Core Micro Nuclear Core > --- PROPULSION (4) --- Improved Hover Unit Improved Hover Unit Gravmag System Gravmag System > --- UTILITY (4) ------ Improved Heat Sink Small Storage Unit Core Analyzer Improved Light Armor Plating > --- WEAPON (2) ------- Pulse Rifle Longsword +1 > --- INVENTORY (8) ---- Light Nuclear Core Light Fission Core Hover Unit Improved Hover Unit Large Matter Pod (150) Weight Redist. System Proton Missile Launcher Remote Datajack Peak State ------------ > --- POWER ------------ Light Nuclear Core Light Nuclear Core Micro Nuclear Core > --- PROPULSION ------- Improved Hover Unit Improved Hover Unit Gravmag System Gravmag System > --- UTILITY ---------- Improved Heat Sink Small Storage Unit Core Analyzer Hardened Medium Armor Plating > --- WEAPON ----------- Advanced Beam Rifle Longsword +1 > --- INVENTORY -------- Light Fission Core Hover Unit Improved Hover Unit Large Matter Pod Weight Redist. System Pulse Rifle Proton Missile Launcher Remote Datajack [Rating: 47] Favorites ----------- Power Ion Engine Engine Ion Engine Power Core Light Nuclear Core Propulsion Aluminum Leg Leg Aluminum Leg Wheel Wheel Hover Unit Improved Hover Unit Utility Small Storage Unit Device Improved Heat Sink Storage Small Storage Unit Processor Core Analyzer Protection Hardened Medium Armor Plating Weapon Longsword +1 Energy Gun EM Pulse Gun Energy Cannon Beam Cannon Ballistic Gun Light Assault Rifle Launcher Proton Missile Launcher Slashing Weapon Longsword +1 Build | -11 -10 -10 -10 -9 -8 -7 -7 -7 ------- Run | Yrd Mat Min Exi Min Mat Fac Was Fac Slots Evolved 6 | . . . . . 4 2 . . Power 2 | . . . . . 1 1 . . Propulsion 2 | . . . . . 1 1 . . Utility 2 | . . . . . 2 . . . Weapon . | . . . . . . . . . Parts Attached 59 | 6 8 2 4 . 21 1 1 16 Power 9 | 1 . . . . 4 . . 4 Engine 5 | 1 . . . . 3 . . 1 Core 4 | . . . . . 1 . . 3 Reactor . | . . . . . . . . . Propulsion 19 | 2 3 1 . . 7 1 1 4 Treads . | . . . . . . . . . Leg 6 | . 2 1 . . 3 . . . Wheel 3 | 2 1 . . . . . . . Hover 10 | . . . . . 4 1 1 4 Flight . | . . . . . . . . . Utility 18 | 1 2 1 3 . 6 . . 5 Device 9 | . 1 1 2 . 3 . . 2 Storage 2 | 1 . . 1 . . . . . Processor 3 | . 1 . . . 1 . . 1 Hackware . | . . . . . . . . . Protection 4 | . . . . . 2 . . 2 Artifact . | . . . . . . . . . Weapon 13 | 2 3 . 1 . 4 . . 3 Energy Gun 4 | 1 . . . . 1 . . 2 Energy Cannon 3 | . 1 . . . 2 . . . Ballistic Gun 3 | 1 2 . . . . . . . Ballistic Cannon . | . . . . . . . . . Launcher 2 | . . . . . 1 . . 1 Special Weapon . | . . . . . . . . . Impact Weapon . | . . . . . . . . . Slashing Weapon 1 | . . . 1 . . . . . Piercing Weapon . | . . . . . . . . . Special Melee Weapon . | . . . . . . . . . Unidentified Prototypes 3 | . . . 2 . 1 . . . Parts Lost 2 | . . . . . 1 . 1 . Power 1 | . . . . . 1 . . . Propulsion . | . . . . . . . . . Utility 1 | . . . . . . . 1 . Weapon . | . . . . . . . . . Highest Loss Streak 1 | . . . . . 1 . 1 . To Critical Strikes . | . . . . . . . . . Average Slot Usage (%) 96 | . 99 100 100 100 92 92 88 89 Engine 12 | . 14 14 14 14 13 15 13 6 Core 1 | . . . . . 4 . . 6 Leg 18 | . 6 28 28 28 15 . . . Wheel 1 | . 21 . . . . . . . Hover 7 | . . . . . 11 30 30 30 Device 13 | . 4 14 14 14 17 23 21 8 Storage 11 | . 14 14 14 14 9 7 7 7 Processor 1 | . 9 . . . 2 . . 7 Protection 1 | . . . . . 1 . . 5 Energy Gun 4 | . 14 14 3 . 3 7 7 6 Energy Cannon 8 | . 4 14 14 14 5 . . . Slashing Weapon 8 | . . . 10 14 9 7 7 7 Naked Turns . | . . . . . . . . . Heaviest Build 35 | 13 16 16 17 17 34 27 27 35 Greatest Support 32 | 20 26 20 20 20 30 28 28 32 Greatest Overweight (x) 1 | . . . . . 1 . . 1 Average Overweight (x) . | . . . . . . . . . Largest Inventory Capacity 8 | 8 8 8 8 8 8 8 8 8 Average Capacity 7 | 6 8 8 8 8 8 8 8 8 Most Carried 8 | 3 8 8 8 8 8 8 8 8 Average Carried 7 | 1 6 7 7 8 7 7 7 7 Final Capacity 8 | 8 8 8 8 8 8 8 8 8 Final Carried 8 | 3 7 8 8 8 8 8 7 8 Class Distribution -------------------- 93% | Mutant 6% | Scavenger-Mutant Dominant Class ---------------- Mutant | -10/Materials Mutant | -10/Mines Mutant | -10/Exiles Mutant | -9/Mines Mutant | -8/Materials Mutant | -7/Factory Mutant | -7/Waste Scavenger-Mutant | -7/Factory Resources | -11 -10 -10 -10 -9 -8 -7 -7 -7 ----------- Run | Yrd Mat Min Exi Min Mat Fac Was Fac Matter Collected 1027 | 260 101 20 40 . 319 . . 287 Remotely . | . . . . . . . . . Salvage Created 1470 | . 489 102 . . 323 . . 556 Parts 91 | . 30 9 . . 15 . . 37 Haulers Intercepted 3 | . 1 . . . 1 . . 1 Recyclers Shooed . | . . . . . . . . . Parts Field Recycled . | . . . . . . . . . Retrieved Matter . | . . . . . . . . . Parts Self-Destructed . | . . . . . . . . . Prevented . | . . . . . . . . . Kills | -11 -10 -10 -10 -9 -8 -7 -7 -7 ------- Run | Yrd Mat Min Exi Min Mat Fac Was Fac Combat Hostiles Destroyed 29 | . 8 3 . . 6 . . 12 Melee 8 | . . . . . . . . 8 Guns 11 | . 8 1 . . . . . 2 Cannons 3 | . . 2 . . 1 . . . AOE 7 | . . . . . 5 . . 2 Classes Destroyed 11 | . 7 1 . . 1 . . 2 Builder 2 | . 1 . . . . . . 1 Tunneler 1 | . . 1 . . . . . . Hauler 3 | . 1 . . . 1 . . 1 Recycler 2 | . 1 . . . 1 . . . Operator 1 | . 1 . . . . . . . Watcher 3 | . 1 . . . 2 . . . Swarmer 8 | . 3 2 . . . . . 3 Cutter 2 | . . . . . . . . 2 Grunt 14 | . 5 1 . . 5 . . 3 Sentry 3 | . . . . . 1 . . 2 Programmer 2 | . . . . . . . . 2 Best Kill Streak 6 | . 6 2 . . 6 . . 3 Combat Bots Only 6 | . 5 1 . . 6 . . 3 Max Kills in Single Turn 2 | . 2 1 . . 2 . . 2 Gunslinging 1 | . 1 . . . . . . . Exploded 2 | . . . . . 2 . . 2 Melee 1 | . . . . . . . . 1 Uniques/NPCs Destroyed . | . . . . . . . . . Combat | -11 -10 -10 -10 -9 -8 -7 -7 -7 -------- Run | Yrd Mat Min Exi Min Mat Fac Was Fac Hostile Shots Fired 108 | . 17 2 . . 24 . 1 64 Missed 46 | . 5 . . . 10 . . 31 Damage Taken 1198 | . 141 31 . . 486 . 52 488 Core 321 | . 29 18 . . 81 . 52 141 Absorbed by Shields . | . . . . . . . . . Core Remaining (%) 88 | 100 . . . 81 85 . . . Volleys Fired 88 | . 23 6 . . 31 . . 28 Largest 2 | . 2 2 . . 1 . . 1 Hottest 100 | . 100 100 . . 61 . . 63 Shots Fired 117 | . 46 12 . . 31 . . 28 Gun 92 | . 40 6 . . 19 . . 27 Cannon 18 | . 6 6 . . 6 . . . Launcher 7 | . . . . . 6 . . 1 Special . | . . . . . . . . . Kinetic 17 | . 17 . . . . . . . Thermal 64 | . 6 6 . . 25 . . 27 Explosive 6 | . . . . . 6 . . . Electromagnetic 30 | . 23 6 . . . . . 1 Robot Hit Streak 12 | . 12 5 . . 4 . . 6 Robot Miss Streak 4 | . 2 4 . . 3 . . 3 Penetration Max . | . . . . . . . . . Secondary Targets 1 | . 1 . . . . . . . Max Gunslinging Chain 1 | . 1 . . . . . . . Shots Hit Robots 94 | . 30 6 . . 24 . . 34 Core Hits 61 | . 19 5 . . 20 . . 17 Critical Kills . | . . . . . . . . . Critical Parts Destroyed . | . . . . . . . . . Critical Strikes 6 | . . . . . 1 . . 5 Burn 1 | . . . . . . . . 1 Sever 5 | . . . . . 1 . . 4 Melee Attacks 67 | . . . . . 30 2 . 35 Impact . | . . . . . . . . . Slashing 67 | . . . . . 30 2 . 35 Piercing . | . . . . . . . . . Sneak Attacks 2 | . . . . . 1 . . 1 Combat Hostiles . | . . . . . . . . . Follow-up Attacks . | . . . . . . . . . Damage Inflicted 3292 | . 409 102 . . 1169 . . 1612 Guns 861 | . 338 40 . . 240 . . 243 Cannons 194 | . 71 53 . . 70 . . . Explosions 1076 | . . . . . 652 . . 424 Melee 1152 | . . . . . 207 . . 945 Ramming 9 | . . 9 . . . . . . Kinetic 87 | . 87 . . . . . . . Thermal 1053 | . 71 53 . . 310 . . 619 Explosive 652 | . . . . . 652 . . . Electromagnetic 339 | . 251 40 . . . . . 48 Impact . | . . . . . . . . . Slashing 1152 | . . . . . 207 . . 945 Piercing . | . . . . . . . . . Highest Corruption . | . . . . . . . . . Average Corruption . | . . . . . . . . . Corruption Purged . | . . . . . . . . . Corruption Blocked . | . . . . . . . . . Overload Shots . | . . . . . . . . . Overflow Damage 216 | . . . . . 36 . . 180 Projectiles . | . . . . . . . . . Explosions 54 | . . . . . . . . 54 Melee 162 | . . . . . 36 . . 126 Knockbacks . | . . . . . . . . . Impact . | . . . . . . . . . Kinetic . | . . . . . . . . . Secondary . | . . . . . . . . . Self-Inflicted Damage . | . . . . . . . . . Shots . | . . . . . . . . . Rammed . | . . . . . . . . . Targets Rammed 1 | . . 1 . . . . . . Kicked 1 | . . 1 . . . . . . Crushed . | . . . . . . . . . Highest Temperature 80 | . 80 18 . . 34 . . 72 Average Temperature 22 | . 25 8 . . 15 . . 23 Received Heat Transfer 342 | . 66 36 . . 90 . . 150 Siege Activations . | . . . . . . . . . Robots Corrupted . | . . . . . . . . . Combat Hostiles . | . . . . . . . . . Parts Fried 2 | . 2 . . . . . . . Impact Corruptions . | . . . . . . . . . Robots Melted . | . . . . . . . . . Combat Hostiles . | . . . . . . . . . Parts Melted 1 | . . 1 . . . . . . Heat Transferred 1656 | . 148 111 . . 592 . . 805 Parts Sabotaged . | . . . . . . . . . Parts Stolen . | . . . . . . . . . Parts Stripped . | . . . . . . . . . Power Chain Reactions . | . . . . . . . . . Alert | -11 -10 -10 -10 -9 -8 -7 -7 -7 ------- Run | Yrd Mat Min Exi Min Mat Fac Was Fac Peak Influence 376 | . 241 265 . 30 290 101 35 376 Initial 99 | . . 93 . . . 99 35 3 Average 113 | . 147 151 . 10 130 99 27 184 Maximum Alert Level 1 | . 1 1 . . 1 . . 1 Low Security (%) 76 | 100 72 70 . 100 75 100 100 45 Level 1 23 | . 27 29 . . 24 . . 54 Level 2 . | . . . . . . . . . Level 3 . | . . . . . . . . . Level 4 . | . . . . . . . . . Level 5 . | . . . . . . . . . High Security . | . . . . . . . . . Max Security . | . . . . . . . . . Squads Dispatched 7 | . 3 . . . . 1 . 3 Investigation 4 | . 2 . . . . 1 . 1 Extermination 1 | . . . . . . . . 1 Reinforcement 2 | . 1 . . . . . . 1 Assault . | . . . . . . . . . Garrison . | . . . . . . . . . Intercept . | . . . . . . . . . Searches Triggered . | . . . . . . . . . Construction Impeded . | . . . . . . . . . Haulers Reinforced . | . . . . . . . . . Active Scanning Responses . | . . . . . . . . . Cargo Convoy Interrupts . | . . . . . . . . . Stealth | -11 -10 -10 -10 -9 -8 -7 -7 -7 --------- Run | Yrd Mat Min Exi Min Mat Fac Was Fac Distress Signals 5 | . 1 . . . 3 . . 1 Communications Jammed . | . . . . . . . . . Distress Signals . | . . . . . . . . . Times Spotted 66 | . 10 6 . 1 16 . 6 27 Peak Tracking Total 8 | . 4 4 . 2 6 . 6 8 Tactical Retreats 9 | . . 1 . 1 2 . . 5 Traps | -11 -10 -10 -10 -9 -8 -7 -7 -7 ------- Run | Yrd Mat Min Exi Min Mat Fac Was Fac Traps Triggered 3 | . 1 . . . 1 1 . . Indirectly . | . . . . . . . . . Trap Hack Attempts . | . . . . . . . . . Triggered . | . . . . . . . . . Disarmed . | . . . . . . . . . Reprogrammed . | . . . . . . . . . Reused . | . . . . . . . . . Traps Extracted . | . . . . . . . . . Installed . | . . . . . . . . . Triggered . | . . . . . . . . . Machines | -11 -10 -10 -10 -9 -8 -7 -7 -7 ---------- Run | Yrd Mat Min Exi Min Mat Fac Was Fac Machines Disabled 3 | . . . . . 1 . . 2 Max in Single Turn 2 | . . . . . 1 . . 2 Machines Repaired . | . . . . . . . . . Machines Dismantled . | . . . . . . . . . Machines Sabotaged . | . . . . . . . . . Overloaded Fab Kills . | . . . . . . . . . Hacking | -11 -10 -10 -10 -9 -8 -7 -7 -7 --------- Run | Yrd Mat Min Exi Min Mat Fac Was Fac Machines Accessed 15 | . 2 . 4 . 1 2 . 6 Terminals 8 | . 2 . . . 1 1 . 4 Fabricators 1 | . . . . . . . . 1 Repair Stations 2 | . . . . . . 1 . 1 Recycling Units . | . . . . . . . . . Scanalyzers . | . . . . . . . . . Garrison Access . | . . . . . . . . . Total Hacks 81 | . 7 . 49 . 2 6 . 17 Successful 61 | . 2 . 49 . 1 2 . 7 Failed 20 | . 5 . . . 1 4 . 10 Catastrophic 4 | . 1 . . . . . . 3 Database Lockouts . | . . . . . . . . . Manual 1 | . . . 1 . . . . . Terminals 23 | . 7 . . . 2 2 . 12 Fabricators 2 | . . . . . . . . 2 Repair Stations 7 | . . . . . . 4 . 3 Recycling Units . | . . . . . . . . . Scanalyzers . | . . . . . . . . . Garrison Access . | . . . . . . . . . Terminal Hacks 59 | . 2 . 49 . 1 1 . 6 Record 49 | . . . 49 . . . . . Prototype ID Bank 1 | . . . . . 1 . . . Unreport Threat 1 | . . . . . . . . 1 Locate Traps 3 | . . . . . . . . 3 Transport Status 1 | . . . . . . 1 . . Recall Investigation 1 | . 1 . . . . . . . Zone Layout 3 | . 1 . . . . . . 2 Fabricator Hacks 1 | . . . . . . . . 1 Network Status 1 | . . . . . . . . 1 Repair Station Hacks 1 | . . . . . . 1 . . Scan Component 1 | . . . . . . 1 . . Recycling Unit Hacks . | . . . . . . . . . Scanalyzer . | . . . . . . . . . Garrison Access Hacks . | . . . . . . . . . Unauthorized Hacks . | . . . . . . . . . Terminals . | . . . . . . . . . Fabricators . | . . . . . . . . . Repair Stations . | . . . . . . . . . Recycling Units . | . . . . . . . . . Scanalyzers . | . . . . . . . . . Garrison Access . | . . . . . . . . . Data Cores Recovered . | . . . . . . . . . Used . | . . . . . . . . . Hacking Detections 11 | . 2 . . . 1 2 . 6 Full Trace Events 3 | . 1 . . . . 1 . 1 Feedback Events . | . . . . . . . . . Feedback Blocked . | . . . . . . . . . Robot Schematics Acquired . | . . . . . . . . . Robots Built . | . . . . . . . . . Authchips . | . . . . . . . . . Time . | . . . . . . . . . Total Robot Build Rating . | . . . . . . . . . Part Schematics Acquired . | . . . . . . . . . Parts Built . | . . . . . . . . . Authchips . | . . . . . . . . . Time . | . . . . . . . . . Total Part Build Rating . | . . . . . . . . . Parts Repaired . | . . . . . . . . . Time . | . . . . . . . . . Parts Recycled . | . . . . . . . . . Recycled Matter . | . . . . . . . . . Retrieved Matter . | . . . . . . . . . Retrieved Components . | . . . . . . . . . Parts Scanalyzed . | . . . . . . . . . Part Schematics Acquired . | . . . . . . . . . Parts Damaged . | . . . . . . . . . Bothacking | -11 -10 -10 -10 -9 -8 -7 -7 -7 ------------ Run | Yrd Mat Min Exi Min Mat Fac Was Fac Used RIF Installer . | . . . . . . . . . Robots Hacked . | . . . . . . . . . Non-combat . | . . . . . . . . . Combat . | . . . . . . . . . Robot Hacks Applied . | . . . . . . . . . Relay Couplers Released . | . . . . . . . . . Fabnet Peak Effective % . | . . . . . . . . . Robots Rewired . | . . . . . . . . . Allies Hacked . | . . . . . . . . . Hacks Repelled . | . . . . . . . . . Allies | -11 -10 -10 -10 -9 -8 -7 -7 -7 -------- Run | Yrd Mat Min Exi Min Mat Fac Was Fac Total Allies 5 | . . 1 . 3 . . 1 . Largest Group 3 | . . 1 1 3 3 . 1 . Highest-Rated Group 40 | . . 31 31 40 40 . 31 . Highest-Rated Ally 31 | . . 31 31 16 16 . 31 . Total Orders . | . . . . . . . . . Ally Attacks 60 | . . 13 . . 36 . 11 . Total Damage 793 | . . 188 . . 412 . 193 . Kills 9 | . . 4 . . 5 . . . Allies Corrupted . | . . . . . . . . . Allies Melted . | . . . . . . . . . Intel | -11 -10 -10 -10 -9 -8 -7 -7 -7 ------- Run | Yrd Mat Min Exi Min Mat Fac Was Fac Robot Analysis Total . | . . . . . . . . . Derelict Logs Recovered 1 | . . 1 . . . . . . Drone Launches . | . . . . . . . . . Drone Recoveries . | . . . . . . . . . Exploration | -11 -10 -10 -10 -9 -8 -7 -7 -7 ------------- Run | Yrd Mat Min Exi Min Mat Fac Was Fac Turns Passed 4117 | 44 269 357 1073 593 1148 88 88 457 Spaces Moved 3345 | 41 181 269 843 421 668 167 171 584 Core 1 | 1 . . . . . . . . Treads . | . . . . . . . . . Legs 1835 | . 35 269 843 421 267 . . . Wheels 186 | 40 146 . . . . . . . Hover 1323 | . . . . . 401 167 171 584 Flight . | . . . . . . . . . Fastest Speed 48 | 50 80 120 120 120 52 48 48 48 Average Speed 93 | 79 93 120 120 120 98 48 48 48 Slowest Speed 190 | 80 120 120 120 120 190 48 52 108 Overloaded Moves . | . . . . . . . . . Propulsion Burnouts . | . . . . . . . . . Robots Hopped . | . . . . . . . . . Cave-ins Triggered 1 | . . . . . 1 . . . Exploration Rate (%) 43 | 3 38 57 93 60 39 5 77 16 Regions Visited 8 Branch Regions 3 Pre-discovered Areas 2 | . . 1 1 . . . . . Known Exits Taken . | . . . . . . . . . Unknown Exits Taken 6 | 1 1 1 1 1 1 . . . Scrap Searched 2 | . . 1 . 1 . . . . Spaces Dug 37 | . . . . . 24 2 . 11 Terrain Destroyed 96 | . . . . . 41 2 . 53 Melee 37 | . . . . . 24 2 . 11 Projectile . | . . . . . . . . . AOE 59 | . . . . . 17 . . 42 Terrain Rammed . | . . . . . . . . . Walls Destroyed . | . . . . . . . . . Machines Disabled . | . . . . . . . . . Actions | -11 -10 -10 -10 -9 -8 -7 -7 -7 --------- Run | Yrd Mat Min Exi Min Mat Fac Was Fac Total 4138 | 49 239 293 905 509 1097 173 176 697 Wait 479 | . 6 9 54 89 310 . 5 6 Move 3338 | 40 180 268 842 420 667 167 170 584 Hop . | . . . . . . . . . Pick Up 50 | 3 11 3 . . 19 2 . 12 Fast Attach 20 | 6 2 . 3 . 5 . . 4 Attach 7 | . . . . . 3 1 1 2 Detach 2 | . . . 1 . . . . 1 Swap 32 | . 6 2 1 . 13 . . 10 Drop 54 | . 11 4 4 . 19 1 . 15 Fire 88 | . 23 6 . . 31 . . 28 Melee 67 | . . . . . 30 2 . 35 Ram . | . . . . . . . . . Kick 1 | . . 1 . . . . . . Crush . | . . . . . . . . . Escape Stasis . | . . . . . . . . . Rewire . | . . . . . . . . . Trap . | . . . . . . . . . Miscellaneous . | . . . . . . . . . Route ------- -11/Scrapyard -10/Materials -10/Mines -10/Exiles (discovered 2 exits: [*Min x2]) -9/Mines -8/Materials (discovered 2 exits: *Fac / *Sto) -7/Factory -7/Waste -7/Factory History --------- Turn | Location | Event 9 | -11/Scrapyard | Discovered new exit (range 16) 45 | -11/Scrapyard | Entered Materials 303 | -10/Materials | Discovered new exit (range 9) 304 | -10/Materials | Build established: Mutant 314 | -10/Materials | Entered Mines 315 | -10/Mines | Assembled infested the area 500 | -10/Mines | Escorted by a lone wolf Derelict 520 | -10/Mines | Learned location of Storage (-8) 602 | -10/Mines | Received a Rocket Launcher from a helpful Derelict 661 | -10/Mines | Discovered new exit (range 5) 671 | -10/Mines | Entered Exiles 671 | -10/Exiles | Accompanied by 1 ally 707 | -10/Exiles | Met 8R-AWN 785 | -10/Exiles | Met EX-HEX 822 | -10/Exiles | Met EX-BIN 841 | -10/Exiles | Aligned with FarCom system 842 | -10/Exiles | Given EX-Vault access code 908 | -10/Exiles | Opened EX-Vault 913 | -10/Exiles | Found Prototype Slashing Weapon 913 | -10/Exiles | Identified Longsword +1 917 | -10/Exiles | Found Prototype Device 917 | -10/Exiles | Identified Cloak of Protection 955 | -10/Exiles | Warned to stay clear of 0b10 Research branches 989 | -10/Exiles | Met EX-DEC 1000 | -10/Exiles | Learned location of Zion (-7) 1070 | -10/Exiles | Visited The Gauntlet 1264 | -10/Exiles | Discovered new exit (range 14) 1726 | -10/Exiles | Discovered new exit (range 14) 1744 | -10/Exiles | Stole two prototypes: Longsword +1, Cloak of Protection 1744 | -10/Exiles | Entered Mines 1809 | -9/Mines | Found a hidden stash of uninstalled traps 1977 | -9/Mines | Assisted by bots powering up and referring to "LRC-V3" 2325 | -9/Mines | Discovered new exit (range 7) 2337 | -9/Mines | Entered Materials 2337 | -8/Materials | Accompanied by 3 allies 2337 | -8/Materials | Evolved 4 slots: Power x1, Propulsion x1, Utility x2 2338 | -8/Materials | Identified exit to Storage 2503 | -8/Materials | Crushed by falling debris 2545 | -8/Materials | Lost 3 allies 3467 | -8/Materials | Discovered new exit (range 15) 3485 | -8/Materials | Entered Factory 3485 | -7/Factory | Evolved 2 slots: Power x1, Propulsion x1 3487 | -7/Factory | FarCom data flow suspended 3573 | -7/Factory | Sucked down chute 3573 | -7/Factory | Entered Waste 3574 | -7/Waste | Met a frightened Derelict 3586 | -7/Waste | Spotted C-40 Crusher 3598 | -7/Waste | Spotted C-40 Crusher 3603 | -7/Waste | Spotted C-40 Crusher 3606 | -7/Waste | Spotted C-40 Crusher 3636 | -7/Waste | Spotted C-40 Crusher 3644 | -7/Waste | Crushed by Compactor (1 part destroyed, 2 dropped) 3646 | -7/Waste | Spotted C-40 Crusher 3656 | -7/Waste | Discovered new exit (range 10) 3661 | -7/Waste | Entered Factory 4118 | -7/Factory | Self-destructed Last Messages --------------- 04068_ Dropped Hrd. Medium Armor Plating. 04069_ Acquired Imp. Light Armor Plating. 04069_ K-01 Serf collects debris. 04069_ W-25 Informer sends out distress signal. 04070_ Acquired 10 matter. 04072_ K-01 Serf collects debris. 04075_ Destroyed Imp. Hover Unit. 04076_ U-05 Engineer builds a Wall. 04076_ K-01 Serf collects debris. 04088_ Sneak attack on U-05 Engineer. 04088_ Destroyed Wheel. 04088_ U-05 Engineer destroyed. 04095_ Connecting with Terminal... >>Layout(Zone) Retrieving Zone 8W layout... Downloaded map data. 04100_ A-02 Transporter destroyed. 04103_ G-47 Trooper destroyed. 04109_ U-05 Engineer builds a Wall. 04111_ U-05 Engineer destroyed. Map ----- +----------------------------------------------------+ | ?????????????????????????????????????????????????? | | ?????????????????????????????????????????????????? | | ?????????????????????????????????????????????????? | | ?????????????????????????????????????????????????? | | ?????????????????????????????????????????????????? | | ?????????????????????????????????????????????????? | | ?????????????????????????????????????????????????? | | ?????????????????????????????????????????????????? | | ?????????????????????????????????????????????????? | | ?????????????????????????????????????????????????? | | ?????????????????????????????????????????????????? | | ?????????????????????????????????????????????????? | | ?????????????????????????????????????????????????? | | ?????????????????????????????????????????????????? | | ?????????????????????????????????????????????????? | | ?????????????????????????????????????????????????? | | ??????????????????##?????????????????????????????? | | ????????????????? ?????????????????????????????? | | ???? "T" # """" # # ??????????????? | | ???? # """" # # ??????????????? | | ???? # """" # # ??????????????? | | ???? """ + """" # # ??????????????? | | ???? """ # """" # #####??????????????? | | ???? """ # """" ######+#???#??????????????? | | ???? # + #???#??????????????? | | ???? """ # # @ %*#???#??????????????? | | ???? """ ########## !*#####??????????????? | | ???? """ ***%g*! ?????????? | | ???? ###+################# ?????????? | | ???? # ############??????????????? | | ???? # ## #??????????????? | | ???? # ## #??????????????? | | ???? # ## #??????????????? | | ????#+###### # ""T"" ## +??????????????? | | ???? #?# # """"" ## #??????????????? | | ???? #?# # ## #??????????????? | | ???? #?# ####+###### #??????????????? | | ???? #?# |=#????# #??????????????? | | ???? #?# #####%#????###########?? ?????????? | | ???? #?# #???#!#??????????????# ?????????? | | ????######?# #???#+########???????# ?????????? | | ???????????# #???# #???????# #????????? | | ???????????# #???# """ #???????# #????????? | | ???????????# #???# """ #???????# ####?????? | | ????########+#???# """ #???????# ?????? | | ???? #???# #???????# [ ?????? | | ???? #???# """ #???????# ??????? | | ????" """ #???# """ #???????# ^??????? | | ????" """ #???# """ #???????# ^ """"?????? | | ?????????????????# #???????# """"""""?? | +----------------------------------------------------+ Best States ------------- Heat Dissipation 48 Coolant Potential 65 Energy Generation 33 Energy Capacity 310 Matter Stores 300 Matter Capacity 300 Sight Range 18 Terrain Scan Density 10 Cloak Strength 5 Additional Mass Support 6 Armor Coverage 225 Evasion (%) 55 Targeting Accuracy 5 Core Analysis 6 Item Schematics ----------------- None Robot Schematics ------------------ None Fabricated ------------ Nothing Alien Tech Used ----------------- None Achievements -------------- None Challenges ------------ None Game ------ Seed ReflectiveEnergyTearclaws Manual? 0 Play Time 00:49:54 Cumulative 58.8 hours Start 2024.04.30 @ 12:29:36 End 2024.04.30 @ 13:17:56 Sessions 1 Manual Loads 0 Difficulty Rogue Special Mode None Game No. 98 Rogue 82 Adventurer 16 Explorer 0 Win Type - Total 0 Types 0/0/0/0/0/0/0/0/0 Lore% 22 Gallery% 37 Achievement% 27 Wizard Run 0 Options --------- Layout 1 ASCII 0 Keyboard 0 Movement Mouse Keybinds 0 Fullscreen 2 Font 24/Smallcaps Map View 50x35 Zoom Use 0% Tactical HUD 1 Map Filters NONE Filters NONE Steam 1 RUN: 9648ddb3-9db5-47e0-b649-c3c3edeadaf5